Cogmind - Beta 9.6 @@@ ROGUE MODE // 2020.05.12 @ 15:12:35 Player: Enzo Result: Core destroyed Performance ------------- Evolutions (0) 0 Regions Visited (4) 800 Robots Destroyed (39) 195 Value Destroyed (499) 499 Prototype IDs (2) 40 Alien Tech Used (0) 0 Bonus (199) 199 TOTAL SCORE: 1733 Bonus ------- Follower Combat Kills 7 Aligned with FarCom 300 Friendly Fire -108 Cogmind --------- Core Integrity 0/250 Matter 300/300 Energy 83/160 System Corruption 0% Temperature Cool (544) Movement Core (600) Ox11 Location -9/Mines Parts ------- > --- POWER (1) -------- Light Nuclear Core > --- PROPULSION (2) --- (None) > --- UTILITY (2) ------ Small Storage Unit Small Storage Unit > --- WEAPON (2) ------- Firepult > --- INVENTORY (8) ---- Structural Scanner Improved Terrain Scanner Terrain Scan Processor ECM Suite Improved Light Armor Plating Hacking Suite Grenade Launcher Improved Grenade Launcher Peak State ------------ > --- POWER ------------ Light Nuclear Core > --- PROPULSION ------- Improved Hover Unit Improved Hover Unit > --- UTILITY ---------- Small Storage Unit Small Storage Unit > --- WEAPON ----------- Firepult > --- INVENTORY -------- Structural Scanner Improved Terrain Scanner Terrain Scan Processor ECM Suite Hacking Suite Grenade Launcher Improved Grenade Launcher [Rating: 30] Favorites ----------- Power Light Ion Engine Engine Light Ion Engine Power Core Light Nuclear Core Propulsion Improved Hover Unit Treads Light Treads Hover Unit Improved Hover Unit Utility Small Storage Unit Device Supersonic Drone Bay Storage Small Storage Unit Weapon Firepult Energy Gun EM Pulse Gun Energy Cannon Firepult Ballistic Gun Light Assault Rifle Launcher Grenade Launcher Build | -11 -10 -10 -10 -9 ------- Run | Scr Mat Min Exi Min Slots Evolved . | . . . . . Power . | . . . . . Propulsion . | . . . . . Utility . | . . . . . Weapon . | . . . . . Parts Attached 25 | 7 5 9 3 1 Power 4 | 1 . 2 . 1 Engine 2 | 1 . 1 . . Core 2 | . . 1 . 1 Reactor . | . . . . . Propulsion 8 | 2 4 2 . . Treads 4 | 2 2 . . . Leg . | . . . . . Wheel . | . . . . . Hover 4 | . 2 2 . . Flight . | . . . . . Utility 6 | 2 . 2 2 . Device 1 | . . . 1 . Storage 5 | 2 . 2 1 . Processor . | . . . . . Hackware . | . . . . . Protection . | . . . . . Artifact . | . . . . . Weapon 7 | 2 1 3 1 . Energy Gun 3 | 1 . 2 . . Energy Cannon 1 | . . . 1 . Ballistic Gun 2 | 1 1 . . . Ballistic Cannon . | . . . . . Launcher 1 | . . 1 . . Special Weapon . | . . . . . Impact Weapon . | . . . . . Slashing Weapon . | . . . . . Piercing Weapon . | . . . . . Special Melee Weapon . | . . . . . Unidentified Prototypes 2 | . . . 2 . Parts Lost 7 | . 1 3 . 3 Power 1 | . . . . 1 Propulsion 4 | . . 2 . 2 Utility . | . . . . . Weapon 2 | . 1 1 . . Highest Loss Streak 4 | . 1 4 . 3 Average Slot Usage (%) 85 | . 100 89 85 61 Engine 12 | . 14 14 14 1 Core 1 | . . . . 12 Treads 2 | . 14 . . . Hover 22 | . 13 28 28 4 Storage 27 | . 28 28 27 28 Energy Gun 3 | . 14 4 . . Energy Cannon 8 | . . . 13 14 Ballistic Gun 2 | . 14 . . . Launcher 2 | . . 14 . . Naked Turns . | . . . . . Heaviest Build 35 | 16 16 16 33 35 Greatest Support 46 | 40 46 16 16 16 Greatest Overweight (x) 11 | 2 1 . 2 11 Average Overweight (x) . | . . . 1 7 Largest Inventory Capacity 8 | 8 8 8 8 8 Average Capacity 7 | 7 8 8 7 8 Most Carried 8 | 4 8 8 8 8 Average Carried 6 | 2 6 6 7 7 Final Capacity 8 | 8 8 8 8 8 Final Carried 8 | 4 8 8 8 8 Class Distribution -------------------- 100% | Mutant Dominant Class ---------------- Mutant | -10/Materials Mutant | -10/Mines Mutant | -10/Exiles Mutant | -9/Mines Resources | -11 -10 -10 -10 -9 ----------- Run | Scr Mat Min Exi Min Matter Collected 487 | 285 67 105 30 . Remotely . | . . . . . Salvage Created 859 | 313 208 14 5 319 Parts 64 | 27 23 8 . 6 Haulers Intercepted 1 | . 1 . . . Recyclers Shooed 1 | . . . . 1 Parts Field Recycled . | . . . . . Retrieved Matter . | . . . . . Parts Self-Destructed . | . . . . . Prevented . | . . . . . Kills | -11 -10 -10 -10 -9 ------- Run | Scr Mat Min Exi Min Combat Hostiles Destroyed 23 | . 6 5 . 12 Guns 5 | . 5 . . . Cannons 5 | . . . . 5 AOE 11 | . 1 5 . 5 Classes Destroyed 12 | 3 4 . 1 4 Worker 3 | 1 . . . 2 Builder 1 | . 1 . . . Tunneler 8 | 8 . . . . Hauler 1 | . 1 . . . Recycler 1 | 1 . . . . Drone 1 | . . . 1 . Watcher 1 | . 1 . . . Swarmer 11 | . 6 5 . . Grunt 2 | . . . . 2 Duelist 1 | . . . . 1 Demolisher 2 | . . . . 2 Assembled 7 | . . . . 7 Best Kill Streak 9 | 3 7 3 . 9 Combat Bots Only 9 | . 6 3 . 9 Max Kills in Single Turn 3 | 1 1 3 1 3 Gunslinging . | . . . . . Exploded 3 | . 1 3 . 2 Melee . | . . . . . Uniques/NPCs Destroyed . | . . . . . Combat | -11 -10 -10 -10 -9 -------- Run | Scr Mat Min Exi Min Damage Taken 1015 | 32 252 255 . 476 Core 252 | 16 9 52 . 175 Absorbed by Shields . | . . . . . Core Remaining (%) 93 | 93 . . . . Volleys Fired 45 | 15 17 3 2 8 Largest 2 | 2 2 1 1 1 Hottest 250 | 60 60 30 250 250 Shots Fired 77 | 30 34 3 2 8 Gun 64 | 30 34 . . . Cannon 10 | . . . 2 8 Launcher 3 | . . 3 . . Special . | . . . . . Kinetic 32 | 15 17 . . . Thermal 10 | . . . 2 8 Explosive 3 | . . 3 . . Electromagnetic 32 | 15 17 . . . Robot Hit Streak 11 | 11 4 3 . 6 Robot Miss Streak 5 | 1 3 1 . 5 Penetration Max . | . . . . . Secondary Targets 2 | . 2 . . . Max Gunslinging Chain 1 | . 1 . . . Shots Hit Robots 43 | 19 16 1 . 7 Core Hits 53 | 11 10 5 1 26 Critical Hits . | . . . . . Critical Kills . | . . . . . Critical Parts Destroyed . | . . . . . Melee Attacks . | . . . . . Impact . | . . . . . Slashing . | . . . . . Piercing . | . . . . . Sneak Attacks . | . . . . . Combat Hostiles . | . . . . . Follow-up Attacks . | . . . . . Damage Inflicted 1401 | 265 242 254 8 632 Guns 414 | 244 170 . . . Cannons 222 | . . . . 222 Explosions 765 | 21 72 254 8 410 Melee . | . . . . . Ramming . | . . . . . Kinetic 70 | 44 26 . . . Thermal 762 | 21 72 29 8 632 Explosive 225 | . . 225 . . Electromagnetic 344 | 200 144 . . . Impact . | . . . . . Slashing . | . . . . . Piercing . | . . . . . Highest Corruption . | . . . . . Average Corruption . | . . . . . Corruption Purged . | . . . . . Overload Shots . | . . . . . Overflow Damage 49 | . . 48 . 1 Projectiles . | . . . . . Explosions 49 | . . 48 . 1 Melee . | . . . . . Knockbacks . | . . . . . Impact . | . . . . . Kinetic . | . . . . . Secondary . | . . . . . Self-Inflicted Damage 371 | 33 32 220 . 86 Shots 14 | 1 1 6 . 6 Rammed . | . . . . . Targets Rammed . | . . . . . Kicked . | . . . . . Crushed . | . . . . . Highest Temperature 662 | 52 52 55 214 662 Average Temperature 133 | 20 24 37 111 259 Received Heat Transfer 39 | . 21 . . 18 Effects 10 | . . . . 10 Shutdowns 3 | . . . . 3 Matter Decay 1 | . . . . 1 Damage (major) 3 | . . . . 3 Damage (core) 3 | . . . . 3 Siege Activations . | . . . . . Robots Corrupted . | . . . . . Combat Hostiles . | . . . . . Parts Fried 1 | . 1 . . . Impact Corruptions . | . . . . . Robots Melted 2 | . . . . 2 Combat Hostiles 2 | . . . . 2 Parts Melted 6 | . . . . 6 Heat Transferred 3690 | 50 150 50 80 3360 Parts Sabotaged . | . . . . . Parts Stolen . | . . . . . Parts Stripped . | . . . . . Power Chain Reactions 2 | 1 1 . . . Missiles Intercepted . | . . . . . Alert | -11 -10 -10 -10 -9 ------- Run | Scr Mat Min Exi Min Peak Influence 304 | 50 304 271 . 120 Average Influence 143 | 25 179 262 . 89 Maximum Alert Level 1 | . 1 1 . . Low Security (%) 63 | 100 63 . . 100 Level 1 36 | . 36 99 . . Level 2 . | . . . . . Level 3 . | . . . . . Level 4 . | . . . . . Level 5 . | . . . . . High Security . | . . . . . Max Security . | . . . . . Squads Dispatched 4 | . 2 1 . 1 Investigation 3 | . 2 1 . . Extermination . | . . . . . Reinforcement 1 | . . . . 1 Assault . | . . . . . Garrison . | . . . . . Intercept . | . . . . . Construction Impeded 1 | . . . . 1 Haulers Reinforced . | . . . . . Stealth | -11 -10 -10 -10 -9 --------- Run | Scr Mat Min Exi Min Distress Signals 2 | . . . . 2 Communications Jammed . | . . . . . Distress Signals . | . . . . . Times Spotted 29 | . 12 6 . 11 Peak Tracking Total 6 | . 6 3 . 5 Tactical Retreats 2 | . 1 1 . . Traps | -11 -10 -10 -10 -9 ------- Run | Scr Mat Min Exi Min Traps Triggered 2 | . 2 . . . Indirectly . | . . . . . Trap Hack Attempts . | . . . . . Triggered . | . . . . . Disarmed . | . . . . . Reprogrammed . | . . . . . Reused . | . . . . . Traps Extracted . | . . . . . Installed . | . . . . . Triggered . | . . . . . Machines | -11 -10 -10 -10 -9 ---------- Run | Scr Mat Min Exi Min Machines Disabled 8 | . 1 7 . . Max in Single Turn 7 | . 1 7 . . Machines Sabotaged . | . . . . . Garrisons Compromised . | . . . . . Overloaded Fab Kills . | . . . . . Fab Network Shutdowns . | . . . . . Hacking | -11 -10 -10 -10 -9 --------- Run | Scr Mat Min Exi Min Machines Accessed 5 | . 2 1 2 . Terminals 2 | . 2 . . . Fabricators . | . . . . . Repair Stations . | . . . . . Recycling Units . | . . . . . Scanalyzers . | . . . . . Garrison Access . | . . . . . Total Hacks 17 | . 6 1 10 . Successful 15 | . 4 1 10 . Failed 2 | . 2 . . . Catastrophic . | . . . . . Database Lockouts . | . . . . . Manual 6 | . 5 . 1 . Terminals 6 | . 6 . . . Fabricators . | . . . . . Repair Stations . | . . . . . Recycling Units . | . . . . . Scanalyzers . | . . . . . Garrison Access . | . . . . . Terminal Hacks 12 | . 1 1 10 . Record 10 | . . . 10 . Open Door 1 | . . 1 . . Alert Level 1 | . 1 . . . Fabricator Hacks . | . . . . . Repair Station Hacks . | . . . . . Recycling Unit Hacks . | . . . . . Scanalyzer . | . . . . . Garrison Access Hacks . | . . . . . Unauthorized Hacks 3 | . 3 . . . Terminals 3 | . 3 . . . Track 1 | . 1 . . . Botnet 1 | . 1 . . . Operators 1 | . 1 . . . Fabricators . | . . . . . Repair Stations . | . . . . . Recycling Units . | . . . . . Scanalyzers . | . . . . . Garrison Access . | . . . . . Data Cores Recovered . | . . . . . Used . | . . . . . Hacking Detections 2 | . 2 . . . Full Trace Events . | . . . . . Feedback Events . | . . . . . Feedback Blocked . | . . . . . Robot Schematics Acquired . | . . . . . Robots Built . | . . . . . Matter . | . . . . . Time . | . . . . . Total Robot Build Rating . | . . . . . Part Schematics Acquired . | . . . . . Parts Built . | . . . . . Matter . | . . . . . Time . | . . . . . Total Part Build Rating . | . . . . . Parts Repaired . | . . . . . Time . | . . . . . Parts Recycled . | . . . . . Recycled Matter . | . . . . . Retrieved Matter . | . . . . . Retrieved Components . | . . . . . Parts Scanalyzed . | . . . . . Part Schematics Acquired . | . . . . . Parts Damaged . | . . . . . Bothacking | -11 -10 -10 -10 -9 ------------ Run | Scr Mat Min Exi Min Used RIF Installer . | . . . . . Robots Hacked . | . . . . . Non-combat . | . . . . . Combat . | . . . . . Robot Hacks Applied . | . . . . . Relay Couplers Released . | . . . . . Robots Rewired . | . . . . . Allies Hacked . | . . . . . Hacks Repelled . | . . . . . Allies | -11 -10 -10 -10 -9 -------- Run | Scr Mat Min Exi Min Total Allies 3 | . . 3 . . Largest Group 3 | . . 3 . . Highest-Rated Group 40 | . . 40 . . Highest-Rated Ally 16 | . . 16 . . Total Orders . | . . . . . Ally Attacks 8 | . . 8 . . Total Damage 66 | . . 66 . . Kills 1 | . . 1 . . Allies Corrupted . | . . . . . Allies Melted . | . . . . . Intel | -11 -10 -10 -10 -9 ------- Run | Scr Mat Min Exi Min Robot Analysis Total . | . . . . . Derelict Logs Recovered 2 | . . 2 . . Drone Launches 1 | . . . 1 . Drone Recoveries . | . . . . . Exploration | -11 -10 -10 -10 -9 ------------- Run | Scr Mat Min Exi Min Turns Passed 2361 | 331 339 345 1092 254 Spaces Moved 1749 | 166 311 538 691 43 Core 34 | 7 . . . 27 Treads 241 | 159 82 . . . Legs . | . . . . . Wheels . | . . . . . Hover 1474 | . 229 538 691 16 Flight . | . . . . . Fastest Speed 50 | 50 56 56 56 116 Average Speed 118 | 157 83 56 154 440 Slowest Speed 600 | 160 160 56 176 600 Overloaded Moves . | . . . . . Propulsion Burnouts . | . . . . . Robots Hopped . | . . . . . Cave-ins Triggered . | . . . . . Exploration Rate (%) 48 | 7 45 84 93 12 Regions Visited 4 Branch Regions 3 Pre-discovered Areas 1 | . . 1 . . Known Exits Taken 1 | . . . 1 . Unknown Exits Taken 3 | 1 1 1 . . Scrap Searched 1 | . . 1 . . Spaces Dug 7 | . . . 7 . Terrain Destroyed 122 | 6 4 52 19 41 Melee . | . . . . . Projectile 6 | . . . 1 5 AOE 116 | 6 4 52 18 36 Actions | -11 -10 -10 -10 -9 --------- Run | Scr Mat Min Exi Min Total 1961 | 206 361 580 714 100 Wait 102 | 15 9 20 11 47 Move 1745 | 165 310 537 690 43 Hop . | . . . . . Pick Up 21 | 4 9 4 3 1 Fast Attach 15 | 7 2 3 3 . Attach 5 | . . 4 . 1 Detach 3 | . 1 2 . . Swap 5 | . 3 2 . . Drop 20 | . 10 5 5 . Fire 45 | 15 17 3 2 8 Melee . | . . . . . Ram . | . . . . . Kick . | . . . . . Crush . | . . . . . Escape Stasis . | . . . . . Rewire . | . . . . . Trap . | . . . . . Miscellaneous . | . . . . . Route ------- -11/Scrapyard -10/Materials -10/Mines (discovered 3 exits: [*Mat x2] / *Exi) -10/Exiles (discovered 2 exits: *Min x2) -9/Mines (discovered 1 exit: [*Mat]) History --------- Turn | Location | Event 9 | -11/Scrapyard | Discovered new exit (range 16) 332 | -11/Scrapyard | Entered Materials 333 | -10/Materials | Build established: Mutant 541 | -10/Materials | Discovered new exit (range 15) 671 | -10/Materials | Entered Mines 703 | -10/Mines | Lost 4 parts (2n2w) 746 | -10/Mines | Assisted by bots powering up and referring to "LRC-V3" 765 | -10/Mines | Discovered new exit (range 9) 828 | -10/Mines | Learned location of Zion (-6) 971 | -10/Mines | Met a Derelict shopkeep closing up shop 1001 | -10/Mines | Discovered new exit (range 14) 1002 | -10/Mines | Deemed a non-threat by the Exiles lab entrance 1003 | -10/Mines | Discovered new exit (range 5) 1016 | -10/Mines | Entered Exiles 1017 | -10/Exiles | Identified exit to Mines 1031 | -10/Exiles | Met 8R-AWN 1041 | -10/Exiles | Met EX-HEX 1057 | -10/Exiles | Met EX-BIN 1063 | -10/Exiles | Aligned with FarCom system 1064 | -10/Exiles | Given EX-Vault access code 1077 | -10/Exiles | Opened EX-Vault 1081 | -10/Exiles | Found Prototype Device 1081 | -10/Exiles | Identified Supersonic Drone Bay 1088 | -10/Exiles | Found Prototype Energy Cannon 1088 | -10/Exiles | Identified Firepult 1171 | -10/Exiles | Warned to stay clear of 0b10 Research branches 1367 | -10/Exiles | Met EX-DEC 1675 | -10/Exiles | Visited The Gauntlet 2108 | -10/Exiles | Left Exiles lab with Firepult 2108 | -10/Exiles | Entered Mines 2109 | -9/Mines | Assembled infested the area 2146 | -9/Mines | Core integrity fell below 50% 2166 | -9/Mines | Destroyed 9 combat bots 2190 | -9/Mines | Lost 3 parts (1p2n) 2340 | -9/Mines | Discovered new exit (range 9) 2357 | -9/Mines | Core integrity fell below 20% 2363 | -9/Mines | Core destroyed Last Messages --------------- 02334_ as-41834 sneak attacks. 02334_ K-01 Serf system corrupted by crushing effect. 02335_ K-01 Serf system terminally corrupted. 02340_ EXIT=FOUND 02343_ as-41834 sneak attacks. 02343_ T-07 Excavator destroyed. 02350_ as-41834 sneak attacks. 02350_ K-01 Serf destroyed. 02354_ Wheel melted. 02354_ K-01 Serf destroyed. 02356_ as-41834 destroyed. 02356_ K-01 Serf destroyed. 02356_ ALERT: Construction progress impeded, dispatching reinforcements to local area. 02357_ Overheating: Core damaged (-27). 02359_ Power failure, Lgt. Nuclear Core shutdown. 02360_ Overheating: Lgt. Nuclear Core damaged (-1). 02360_ Overheating: Sml. Storage Unit damaged (-52). 02360_ Overheating: Firepult damaged (-115). 02363_ Overheating: Core damaged (-37). Map ----- +----------------------------------------------------+ | ????????????????????????????????????????? | | ????????????????????????????????????????? | | ???????????????####?????????????????????? | | ??????????????? ##????????????????????? | | ??????????????? #????????????????????? | | ??????????????? ?????????????????????? | | ??????????????? ?????????????????????? | | ????????####### ??????????????????????? | | ???#????# " ### ??????????????????????? | | ???# ??### ######???????????????????? | | ???# #### # #???????????????????? | | ???# # # #???????????????????? | | ???# % ### ##???????????????????? | | ???###### # #???????????????????? | | ??????# % ### #???????????????????? | | ??????# #%# ###???????????????????? | | ??????# #% * ##???????????????????? | | ??????###### =| #???????????????????? | | ???????????#### #??????????###??????? | | ????????????### r ###???????# ####???? | | ???????????????# ;;#####?# < ##??? | | ????????????????#=u * ## #??? | | ????????????????# !%= #???? | | ????????????????## % #????? | | ?????????????????###### %= #?????? | | ??????????????????????## @ #?????? | | ???????????????????????## """ #?????? | | ????????????????????????# """ ??????? | | ????????????????????????## """ ??????? | | ??????????????????????????# ??????? | | ???????????????????????????# ###?????? | | ????????????????????????????#####???????? | | ????????????????????????????????????????? | | ????????????????????????????????????????? | | ????????????????????????????????????????? | | ????????????????????????????????????????? | | ????????????????????????????????????????? | | ????????????????????????????????????????? | | ????????????????????????????????????????? | | ????????????????????????????????????????? | | ????????????????????????????????????????? | | ????????????????????????????????????????? | | ????????????????????????????????????????? | | ????????????????????????????????????????? | | ????????????????????????????????????????? | | ????????????????????????????????????????? | | ????????????????????????????????????????? | | ????????????????????????????????????????? | | ????????????????????????????????????????? | | | +----------------------------------------------------+ Best States ------------- Heat Dissipation 25 Energy Generation 14 Energy Capacity 250 Matter Stores 300 Matter Capacity 300 Sight Range 16 Terrain Scan Density 10 Evasion (%) 53 Recoil Reduction 2 Item Schematics ----------------- None Robot Schematics ------------------ None Fabricated ------------ Nothing Alien Tech Used ----------------- None Achievements -------------- None Challenges ------------ None Game ------ Seed ShockSupersonicLance Manual? 0 Play Time 00:25:10 Cumulative 26.8 hours Start 2020.05.12 @ 13:52:57 End 2020.05.12 @ 15:12:35 Sessions 1 Manual Loads 0 Difficulty Rogue Special Mode None Game No. 70 Rogue 70 Adventurer 0 Explorer 0 Win Type - Total 0 Types 0/0/0/0/0/0/0 Lore% 39 Gallery% 36 Achievement% 32 Wizard Run 0 Options --------- ASCII 0 Keyboard 0 Movement Numpad Keybinds 0 Fullscreen 2 Font 24/Smallcaps Map View 76x50 Tactical HUD 1 Map Filters NONE Filters NONE Steam 1 RUN: cadef599-106e-4c7a-a547-afe1a97a831a